[Event "Championnat du monde jeunes U12"]
[Date "2024.11.18"]
[White "Farzaleev, Daniyar"]
[Black "Rueda Ahumada, Gabriel Omar"]
[WhiteElo "1622"]
[BlackElo "1928"]
[Round "4.32"]
[Result "1/2-1/2"]
[TimeControl "5400+30"]

1. d4 {[%clk 1:30:58]} 1... d5 {[%clk 1:30:54]} 2. Nf3 {[%clk 1:31:24]} 2... e6
{[%clk 1:31:14]} 3. g3 {[%clk 1:31:52]} 3... c5 {[%clk 1:30:29]} 4. Bg2 {[%clk
1:32:16]} 4... Nc6 {[%clk 1:29:13]} 5. O-O {[%clk 1:32:40]} 5... cxd4 {[%clk
1:28:51]} 6. Nxd4 {[%clk 1:33:07]} 6... Nf6 {[%clk 1:29:12]} 7. c4 {[%clk
1:33:34]} 7... Be7 {[%clk 1:28:01]} 8. Nc3 {[%clk 1:33:30]} 8... h6 {[%clk
1:16:28]} 9. cxd5 {[%clk 1:31:07]} 9... exd5 {[%clk 1:16:50]} 10. Qa4 {[%clk
1:31:09]} 10... Qd7 {[%clk 1:12:09]} 11. Rd1 {[%clk 1:30:20]} 11... O-O {[%clk
1:11:35]} 12. Nxc6 {[%clk 1:29:23]} 12... bxc6 {[%clk 1:11:58]} 13. e4 {[%clk
1:29:42]} 13... Rd8 {[%clk 1:01:47]} 14. exd5 {[%clk 1:28:12]} 14... cxd5 {[%clk
1:02:10]} 15. Qxd7 {[%clk 1:28:38]} 15... Rxd7 {[%clk 1:02:28]} 16. Nxd5 {[%clk
1:29:01]} 16... Nxd5 {[%clk 1:02:45]} 17. Bxd5 {[%clk 1:27:54]} 17... Rb8 {[%clk
1:01:55]} 18. Bf4 {[%clk 1:28:16]} 18... Rxb2 {[%clk 0:41:23]} 19. Rac1 {[%clk
1:28:18]} 19... Rd8 {[%clk 0:41:48]} 20. Bc7 {[%clk 1:23:24]} 20... Rf8 {[%clk
0:40:04]} 21. Be5 {[%clk 1:21:40]} 21... Re2 {[%clk 0:40:25]} 22. Bd4 {[%clk
1:22:04]} 22... Bf5 {[%clk 0:33:17]} 23. Bxa7 {[%clk 1:19:14]} 23... Rd8 {[%clk
0:29:13]} 24. Bc4 {[%clk 1:16:04]} 24... Red2 {[%clk 0:28:53]} 25. Rxd2 {[%clk
1:16:25]} 25... Rxd2 {[%clk 0:29:15]} 26. Be3 {[%clk 1:16:48]} 26... Rb2 {[%clk
0:26:59]} 27. Bd5 {[%clk 1:15:08]} 27... Rb5 {[%clk 0:22:34]} 28. Bb3 {[%clk
1:15:31]} 28... Bd6 {[%clk 0:20:42]} 29. Rd1 {[%clk 1:09:51]} 29... Bc7 {[%clk
0:20:43]} 30. Rd5 {[%clk 1:09:50]} 30... Rxd5 {[%clk 0:20:59]} 31. Bxd5 {[%clk
1:10:18]} 31... Bd3 {[%clk 0:20:36]} 32. Bc5 {[%clk 1:10:40]} 32... g5 {[%clk
0:20:20]} 33. f3 {[%clk 1:10:00]} 33... Kg7 {[%clk 0:20:37]} 34. Kf2 {[%clk
1:10:25]} 34... h5 {[%clk 0:19:40]} 35. Ke3 {[%clk 1:07:44]} 35... Bb5 {[%clk
0:18:43]} 36. Bb3 {[%clk 1:05:40]} 36... Kg6 {[%clk 0:17:09]} 37. Bc2+ {[%clk
1:05:28]} 37... Kg7 {[%clk 0:16:57]} 38. a4 {[%clk 1:05:39]} 38... Ba6 {[%clk
0:17:16]} 39. Bd3 {[%clk 1:05:37]} 39... Bb7 {[%clk 0:17:35]} 40. Bb4 {[%clk
1:04:07]} 40... Bb6+ {[%clk 0:17:58]} 41. Ke2 {[%clk 1:04:32]} 41... Bc8 {[%clk
0:18:07]} 42. a5 {[%clk 1:04:22]} 42... Bg1 {[%clk 0:18:30]} 43. Kf1 {[%clk
1:04:38]} 43... Ba7 {[%clk 0:18:32]} 44. Be7 {[%clk 1:04:58]} 44... f6 {[%clk
0:18:54]} 45. Bd8 {[%clk 1:05:24]} 45... Bb7 {[%clk 0:18:54]} 46. Bb6 {[%clk
1:05:46]} 46... Bxb6 {[%clk 0:12:46]} 47. axb6 {[%clk 1:04:31]} 47... Bxf3
{[%clk 0:13:10]} 48. Ba6 {[%clk 1:04:49]} 48... h4 {[%clk 0:13:35]} 49. b7
{[%clk 1:05:14]} 49... Bxb7 {[%clk 0:13:59]} 50. Bxb7 {[%clk 1:05:41]} 50... f5
{[%clk 0:13:25]} 51. Kf2 {[%clk 1:05:40]} 51... Kf6 {[%clk 0:11:16]} 52. gxh4
{[%clk 1:05:52]} 52... gxh4 {[%clk 0:11:39]} 53. h3 {[%clk 1:06:15]} 53... Kg5
{[%clk 0:12:00]} 1/2-1/2

[Variant "Standard"]
[Site "Europe Echecs"]

[Event "Championnat du monde jeunes U12"]
[Date "2024.11.18"]
[White "Ritzerveld, Noah"]
[Black "Sason, Noam"]
[WhiteElo "2285"]
[BlackElo "2017"]
[Round "4.33"]
[Result "1-0"]
[TimeControl "5400+30"]

1. e4 {[%clk 1:30:57]} 1... c5 {[%clk 1:30:53]} 2. Nf3 {[%clk 1:31:21]} 2... d6
{[%clk 1:31:17]} 3. d4 {[%clk 1:31:44]} 3... cxd4 {[%clk 1:31:43]} 4. Nxd4
{[%clk 1:32:09]} 4... Nf6 {[%clk 1:32:05]} 5. Nc3 {[%clk 1:32:33]} 5... a6
{[%clk 1:31:49]} 6. Be2 {[%clk 1:32:25]} 6... e5 {[%clk 1:31:48]} 7. Nb3 {[%clk
1:32:47]} 7... Be7 {[%clk 1:30:42]} 8. Qd3 {[%clk 1:32:21]} 8... Be6 {[%clk
1:24:21]} 9. Bd2 {[%clk 1:30:29]} 9... Nbd7 {[%clk 1:20:14]} 10. g4 {[%clk
1:24:39]} 10... Nxg4 {[%clk 1:13:25]} 11. Rg1 {[%clk 1:24:14]} 11... h5 {[%clk
1:03:39]} 12. h3 {[%clk 1:23:56]} 12... Ngf6 {[%clk 1:00:15]} 13. Rxg7 {[%clk
1:23:11]} 13... Ng4 {[%clk 0:45:05]} 14. hxg4 {[%clk 1:01:15]} 14... Kf8 {[%clk
0:40:21]} 15. gxh5 {[%clk 0:52:57]} 15... Kxg7 {[%clk 0:40:31]} 16. O-O-O {[%clk
0:52:02]} 16... Nf6 {[%clk 0:35:50]} 17. f4 {[%clk 0:47:11]} 17... Bxb3 {[%clk
0:30:18]} 18. axb3 {[%clk 0:46:11]} 18... Qf8 {[%clk 0:25:57]} 19. fxe5 {[%clk
0:39:08]} 19... dxe5 {[%clk 0:26:00]} 20. Qg3+ {[%clk 0:38:21]} 20... Kh7 {[%clk
0:26:23]} 21. Qxe5 {[%clk 0:38:04]} 21... Rg8 {[%clk 0:24:58]} 22. Qf5+ {[%clk
0:36:37]} 22... Kh8 {[%clk 0:24:17]} 23. e5 {[%clk 0:35:49]} 23... Nh7 {[%clk
0:22:31]} 24. Bd3 {[%clk 0:34:48]} 24... Qg7 {[%clk 0:22:53]} 25. Kb1 {[%clk
0:28:27]} 25... Nf8 {[%clk 0:19:56]} 26. Nd5 {[%clk 0:27:39]} 26... Bd8 {[%clk
0:18:27]} 27. Bc3 {[%clk 0:22:38]} 27... Ne6 {[%clk 0:16:27]} 28. Nf6 {[%clk
0:18:33]} 28... Rf8 {[%clk 0:14:16]} 29. Bb4 {[%clk 0:18:04]} 1-0

[Variant "Standard"]
[Site "Europe Echecs"]

[Event "Championnat du monde jeunes U12"]
[Date "2024.11.18"]
[White "Gazzato, Nicolo`"]
[Black "Sahbudak, Baris Cinar"]
[WhiteElo "1868"]
[BlackElo "2264"]
[Round "4.34"]
[Result "0-1"]
[TimeControl "5400+30"]

1. e4 {[%clk 1:30:52]} 1... c5 {[%clk 1:30:16]} 2. Nf3 {[%clk 1:31:14]} 2... d6
{[%clk 1:29:42]} 3. Bb5+ {[%clk 1:31:35]} 3... Bd7 {[%clk 1:29:12]} 4. Bxd7+
{[%clk 1:31:56]} 4... Nxd7 {[%clk 1:29:08]} 5. O-O {[%clk 1:30:55]} 5... Ngf6
{[%clk 1:29:09]} 6. Qe2 {[%clk 1:28:24]} 6... e6 {[%clk 1:26:24]} 7. a4 {[%clk
1:26:31]} 7... Be7 {[%clk 1:24:27]} 8. c4 {[%clk 1:24:21]} 8... O-O {[%clk
1:18:04]} 9. Nc3 {[%clk 1:23:53]} 9... Rc8 {[%clk 1:13:07]} 10. d3 {[%clk
1:19:58]} 10... Nb8 {[%clk 1:10:04]} 11. Bg5 {[%clk 1:13:16]} 11... Nc6 {[%clk
1:07:28]} 12. Rfe1 {[%clk 0:56:09]} 12... Nd7 {[%clk 0:46:43]} 13. Bxe7 {[%clk
0:50:49]} 13... Qxe7 {[%clk 0:45:43]} 14. Rad1 {[%clk 0:48:04]} 14... Nde5
{[%clk 0:43:05]} 15. Qe3 {[%clk 0:29:05]} 15... Nb4 {[%clk 0:31:23]} 16. Nxe5
{[%clk 0:26:54]} 16... dxe5 {[%clk 0:31:17]} 17. Qg3 {[%clk 0:26:10]} 17... f6
{[%clk 0:23:46]} 18. f4 {[%clk 0:22:09]} 18... exf4 {[%clk 0:18:59]} 19. Qxf4
{[%clk 0:22:25]} 19... Rcd8 {[%clk 0:17:50]} 20. Re3 {[%clk 0:21:03]} 20... Rd7
{[%clk 0:17:00]} 21. Ne2 {[%clk 0:19:35]} 21... Rfd8 {[%clk 0:13:32]} 22. Nc1
{[%clk 0:19:34]} 22... Rd4 {[%clk 0:12:52]} 23. Qg3 {[%clk 0:17:49]} 23... Rxc4
{[%clk 0:11:08]} 24. Nb3 {[%clk 0:15:20]} 24... Rc2 {[%clk 0:09:21]} 25. Rc1
{[%clk 0:13:03]} 25... c4 {[%clk 0:06:36]} 26. dxc4 {[%clk 0:12:18]} 26... Rxc1+
{[%clk 0:07:01]} 27. Nxc1 {[%clk 0:12:47]} 27... Qc5 {[%clk 0:05:44]} 28. Nb3
{[%clk 0:07:50]} 28... Qxc4 {[%clk 0:04:44]} 29. h3 {[%clk 0:06:34]} 29... Nc6
{[%clk 0:01:15]} 30. Qc7 {[%clk 0:04:43]} 30... Qxa4 {[%clk 0:01:04]} 31. Kh2
{[%clk 0:03:40]} 31... Qb5 {[%clk 0:00:53]} 32. Rg3 {[%clk 0:03:51]} 32... g6
{[%clk 0:01:13]} 33. h4 {[%clk 0:02:38]} 33... Qh5 {[%clk 0:00:34]} 34. Kh3
{[%clk 0:01:57]} 34... g5 {[%clk 0:00:33]} 35. Rg4 {[%clk 0:01:49]} 35... Re8
{[%clk 0:00:34]} 36. Qg3 {[%clk 0:00:45]} 36... Kh8 {[%clk 0:00:33]} 37. Qf2
{[%clk 0:00:44]} 37... Kg7 {[%clk 0:00:36]} 38. Qg3 {[%clk 0:01:07]} 38... Kh8
{[%clk 0:01:05]} 39. Qf2 {[%clk 0:01:36]} 39... Qh6 {[%clk 0:00:51]} 40. Kg3
{[%clk 0:00:34]} 40... Ne5 {[%clk 0:01:10]} 41. hxg5 {[%clk 0:00:36]} 41... Qh2+
{[%clk 0:01:11]} 42. Kxh2 {[%clk 0:00:55]} 42... Nxg4+ {[%clk 0:01:40]} 43. Kg3
{[%clk 0:01:25]} 43... Nxf2 {[%clk 0:02:09]} 44. Kxf2 {[%clk 0:01:54]} 44...
fxg5 {[%clk 0:02:29]} 45. Nc5 {[%clk 0:02:22]} 45... b6 {[%clk 0:02:48]} 46. Nd7
{[%clk 0:02:34]} 46... Rd8 {[%clk 0:03:06]} 47. Ne5 {[%clk 0:02:57]} 47... Rd2+
{[%clk 0:03:28]} 48. Kg3 {[%clk 0:03:24]} 48... h6 {[%clk 0:03:26]} 49. Nc4
{[%clk 0:03:48]} 49... Rc2 {[%clk 0:03:45]} 50. b3 {[%clk 0:04:17]} 50... Rc3+
{[%clk 0:04:14]} 51. Kg4 {[%clk 0:04:47]} 51... Rxb3 {[%clk 0:04:25]} 52. Nd6
{[%clk 0:05:16]} 52... Kg7 {[%clk 0:04:43]} 53. Nc8 a5 {[%clk 0:05:06]} 54. Nd6
{[%clk 0:06:07]} 54... a4 {[%clk 0:05:29]} 55. Ne8+ {[%clk 0:06:33]} 55... Kg6
{[%clk 0:05:52]} 56. Nc7 {[%clk 0:07:00]} 56... h5# {[%clk 0:06:18]} 0-1

[Variant "Standard"]
[Site "Europe Echecs"]

[Event "Championnat du monde jeunes U12"]
[Date "2024.11.18"]
[White "Nguyen Le Nguyen"]
[Black "Saminskij, Jan"]
[WhiteElo "1782"]
[BlackElo "2202"]
[Round "4.35"]
[Result "1-0"]
[TimeControl "5400+30"]

1. e4 {[%clk 1:30:57]} 1... e6 {[%clk 1:30:20]} 2. d4 {[%clk 1:30:59]} 2... d5
{[%clk 1:30:30]} 3. e5 {[%clk 1:31:14]} 3... c5 {[%clk 1:30:53]} 4. c3 {[%clk
1:31:32]} 4... Nc6 {[%clk 1:31:19]} 5. Nf3 {[%clk 1:31:34]} 5... Bd7 {[%clk
1:31:43]} 6. Be2 {[%clk 1:23:11]} 6... f6 {[%clk 1:30:11]} 7. O-O {[%clk
1:04:31]} 7... fxe5 {[%clk 1:30:23]} 8. dxe5 {[%clk 1:03:32]} 8... Nh6 {[%clk
1:30:44]} 9. c4 {[%clk 0:39:46]} 9... d4 {[%clk 1:30:44]} 10. Bf4 {[%clk
0:39:17]} 10... Qc7 {[%clk 1:30:25]} 11. Nbd2 {[%clk 0:33:26]} 11... Nf7 {[%clk
1:28:19]} 12. Re1 {[%clk 0:32:24]} 12... Be7 {[%clk 1:28:33]} 13. h4 {[%clk
0:32:10]} 13... O-O-O {[%clk 1:27:25]} 14. Bd3 {[%clk 0:24:01]} 14... Rdf8
{[%clk 1:23:39]} 15. g3 {[%clk 0:12:03]} 15... g6 {[%clk 1:14:49]} 16. Ne4
{[%clk 0:05:34]} 16... h6 {[%clk 0:58:31]} 17. Nd6+ {[%clk 0:00:55]} 17... Nxd6
{[%clk 0:58:54]} 18. exd6 {[%clk 0:01:22]} 18... Bxd6 {[%clk 0:59:16]} 19. Bxd6
{[%clk 0:01:44]} 19... Qxd6 {[%clk 0:59:39]} 20. Bxg6 {[%clk 0:02:00]} 20... e5
{[%clk 0:56:34]} 21. Be4 {[%clk 0:02:26]} 21... Bg4 {[%clk 0:54:55]} 22. Re3
{[%clk 0:01:17]} 22... Qe7 {[%clk 0:48:12]} 23. Ra3 {[%clk 0:00:40]} 23... Rf6
{[%clk 0:36:40]} 24. Qe1 {[%clk 0:00:33]} 24... Re8 {[%clk 0:35:04]} 25. Nd2
{[%clk 0:00:35]} 25... a6 {[%clk 0:31:29]} 26. Qf1 {[%clk 0:00:43]} 26... Ref8
{[%clk 0:30:50]} 27. f3 {[%clk 0:00:39]} 27... Bd7 {[%clk 0:31:04]} 28. Kh2
{[%clk 0:00:38]} 28... Rg8 {[%clk 0:29:40]} 29. Qf2 {[%clk 0:00:39]} 29... Qe6
{[%clk 0:28:25]} 30. Qg2 {[%clk 0:00:37]} 30... Ne7 {[%clk 0:26:53]} 31. Re1
{[%clk 0:00:39]} 31... Nf5 {[%clk 0:23:11]} 32. Bd5 {[%clk 0:00:39]} 32... Qe8
{[%clk 0:22:33]} 33. Bxg8 {[%clk 0:01:04]} 33... Qxg8 {[%clk 0:23:02]} 34. Rxe5
{[%clk 0:01:12]} 34... Rg6 {[%clk 0:21:28]} 35. Rxc5+ {[%clk 0:01:14]} 35... Kb8
{[%clk 0:21:35]} 36. Ne4 {[%clk 0:01:14]} 36... Ne3 {[%clk 0:20:10]} 37. Qf2
{[%clk 0:01:13]} 37... Qe6 {[%clk 0:20:32]} 38. Rxe3 {[%clk 0:00:35]} 38... dxe3
{[%clk 0:19:37]} 39. Qxe3 {[%clk 0:01:01]} 39... Bc6 {[%clk 0:18:35]} 40. Qf4+
{[%clk 0:00:42]} 40... Ka7 {[%clk 0:18:38]} 41. b3 {[%clk 0:00:48]} 41... Qg8
{[%clk 0:17:21]} 42. Re5 {[%clk 0:00:57]} 42... Qd8 {[%clk 0:16:50]} 43. Qe3+
{[%clk 0:00:54]} 43... Ka8 {[%clk 0:17:06]} 44. b4 {[%clk 0:00:59]} 44... Qd1
{[%clk 0:15:24]} 45. b5 {[%clk 0:00:52]} 45... Qc2+ {[%clk 0:15:46]} 46. Nf2
{[%clk 0:00:31]} 46... axb5 {[%clk 0:15:10]} 47. cxb5 {[%clk 0:00:59]} 47... Bd7
{[%clk 0:15:34]} 48. b6 {[%clk 0:01:04]} 48... Qa4 {[%clk 0:14:31]} 49. Qe1
{[%clk 0:00:37]} 49... Kb8 {[%clk 0:14:27]} 50. Qe3 {[%clk 0:00:34]} 50... Rc6
{[%clk 0:13:54]} 51. a3 {[%clk 0:00:34]} 51... Qc2 {[%clk 0:13:26]} 52. Rd5
{[%clk 0:00:40]} 52... Re6 {[%clk 0:13:12]} 53. Qf4+ {[%clk 0:01:03]} 53... Kc8
{[%clk 0:13:34]} 54. Qf8+ {[%clk 0:01:25]} 1-0

[Variant "Standard"]
[Site "Europe Echecs"]

[Event "Championnat du monde jeunes U12"]
[Date "2024.11.18"]
[White "Kuandykuly, Danis"]
[Black "Sun, Kevin"]
[WhiteElo "2199"]
[BlackElo "1966"]
[Round "4.36"]
[Result "1-0"]
[TimeControl "5400+30"]

1. e4 {[%clk 1:30:50]} 1... c5 {[%clk 1:30:55]} 2. Nf3 {[%clk 1:31:12]} 2... d6
{[%clk 1:31:21]} 3. d4 {[%clk 1:31:34]} 3... cxd4 {[%clk 1:31:46]} 4. Nxd4
{[%clk 1:32:01]} 4... Nf6 {[%clk 1:32:09]} 5. Nc3 {[%clk 1:32:28]} 5... a6
{[%clk 1:32:35]} 6. h3 {[%clk 1:32:47]} 6... e6 {[%clk 1:32:41]} 7. g4 {[%clk
1:33:12]} 7... d5 {[%clk 1:33:07]} 8. exd5 {[%clk 1:33:37]} 8... Nxd5 {[%clk
1:33:33]} 9. Nde2 {[%clk 1:34:03]} 9... Bb4 {[%clk 1:32:10]} 10. Bg2 {[%clk
1:34:29]} 10... O-O {[%clk 1:32:20]} 11. O-O {[%clk 1:34:55]} 11... Nxc3 {[%clk
1:32:05]} 12. Nxc3 {[%clk 1:35:20]} 12... Qc7 {[%clk 1:31:59]} 13. Qf3 {[%clk
1:34:57]} 13... Nc6 {[%clk 1:30:32]} 14. Bf4 {[%clk 1:07:00]} 14... e5 {[%clk
1:23:34]} 15. Nd5 {[%clk 1:05:50]} 15... Qd6 {[%clk 1:23:26]} 16. Be3 {[%clk
1:05:14]} 16... Bc5 {[%clk 1:20:33]} 17. c3 {[%clk 1:03:05]} 17... Bxe3 {[%clk
1:19:32]} 18. Qxe3 {[%clk 1:03:16]} 18... Be6 {[%clk 1:12:03]} 19. Rad1 {[%clk
1:03:31]} 19... Bxd5 {[%clk 1:12:08]} 20. Rxd5 {[%clk 1:03:46]} 20... Qe6 {[%clk
1:11:12]} 21. Rfd1 {[%clk 0:59:05]} 21... Rfd8 {[%clk 1:09:05]} 22. Qb6 {[%clk
0:58:10]} 22... Qe7 {[%clk 1:06:19]} 23. b4 {[%clk 0:56:44]} 23... Rxd5 {[%clk
0:56:12]} 24. Rxd5 {[%clk 0:56:03]} 24... h6 {[%clk 0:55:30]} 25. a4 {[%clk
0:46:33]} 25... Rc8 {[%clk 0:47:28]} 26. Rc5 {[%clk 0:41:41]} 26... Rd8 {[%clk
0:43:09]} 27. Rd5 {[%clk 0:39:05]} 27... Rxd5 28. Bxd5 {[%clk 0:39:27]} 28...
Qd6 {[%clk 0:35:33]} 29. Bg2 {[%clk 0:35:54]} 29... Qd1+ {[%clk 0:34:54]} 30.
Kh2 {[%clk 0:34:20]} 30... Qd2 {[%clk 0:30:36]} 31. Qxb7 {[%clk 0:31:39]} 31...
Qf4+ {[%clk 0:30:54]} 32. Kg1 {[%clk 0:32:03]} 32... Qc1+ {[%clk 0:31:18]} 33.
Bf1 {[%clk 0:32:25]} 33... Qxc3 {[%clk 0:31:36]} 34. Qc8+ {[%clk 0:32:47]} 34...
Kh7 {[%clk 0:30:40]} 35. b5 {[%clk 0:33:11]} 35... axb5 {[%clk 0:28:22]} 36.
axb5 {[%clk 0:33:18]} 36... e4 {[%clk 0:28:08]} 37. Qxc6 {[%clk 0:33:13]} 37...
Qe1 {[%clk 0:28:17]} 38. Qc5 {[%clk 0:33:26]} 1-0

[Variant "Standard"]
[Site "Europe Echecs"]

[Event "Championnat du monde jeunes U12"]
[Date "2024.11.18"]
[White "Ambartsumian, Tyhran"]
[Black "Konstantinides, Savvas"]
[WhiteElo "2123"]
[BlackElo "1839"]
[Round "4.37"]
[Result "1-0"]
[TimeControl "5400+30"]

1. e4 {[%clk 1:30:28]} 1... c5 {[%clk 1:30:55]} 2. Nf3 {[%clk 1:30:54]} 2... d6
{[%clk 1:31:19]} 3. Bb5+ {[%clk 1:31:17]} 3... Nd7 {[%clk 1:31:43]} 4. a4 {[%clk
1:31:44]} 4... Nf6 {[%clk 1:32:07]} 5. Nc3 {[%clk 1:32:10]} 5... a6 {[%clk
1:32:29]} 6. Be2 {[%clk 1:32:36]} 6... b6 {[%clk 1:32:46]} 7. d4 {[%clk
1:33:02]} 7... cxd4 {[%clk 1:32:52]} 8. Qxd4 {[%clk 1:33:28]} 8... Bb7 {[%clk
1:32:19]} 9. O-O {[%clk 1:33:51]} 9... g6 {[%clk 1:31:58]} 10. e5 {[%clk
1:29:54]} 10... Bxf3 {[%clk 1:09:20]} 11. Bxf3 {[%clk 1:29:42]} 11... dxe5
{[%clk 1:00:59]} 12. Qd3 {[%clk 1:28:50]} 12... Rc8 {[%clk 0:43:53]} 13. Qxa6
{[%clk 1:25:19]} 13... Bg7 {[%clk 0:43:17]} 14. Rd1 {[%clk 1:23:44]} 14... O-O
{[%clk 0:42:59]} 15. Be3 {[%clk 1:24:08]} 15... Qc7 {[%clk 0:38:34]} 16. Rd2
{[%clk 1:21:56]} 16... e4 {[%clk 0:34:38]} 17. Be2 {[%clk 1:22:03]} 17... Nc5
{[%clk 0:33:39]} 18. Qb5 {[%clk 1:20:55]} 18... e6 {[%clk 0:30:50]} 19. Rad1
{[%clk 1:20:47]} 19... Rfd8 {[%clk 0:30:02]} 20. Rxd8+ {[%clk 1:19:14]} 20...
Rxd8 {[%clk 0:30:18]} 21. Rxd8+ {[%clk 1:19:38]} 21... Qxd8 {[%clk 0:30:39]} 22.
a5 {[%clk 1:20:01]} 22... Nd5 {[%clk 0:29:13]} 23. Nxd5 {[%clk 1:19:45]} 23...
exd5 {[%clk 0:29:30]} 24. Qxb6 {[%clk 1:19:41]} 24... Qxb6 {[%clk 0:29:37]} 25.
axb6 {[%clk 1:20:06]} 25... d4 {[%clk 0:30:00]} 26. Bf4 {[%clk 1:20:26]} 26...
g5 {[%clk 0:29:08]} 27. Bd6 {[%clk 1:20:02]} 27... Nb7 {[%clk 0:29:12]} 28. Bc7
{[%clk 1:20:27]} 28... f5 {[%clk 0:21:55]} 29. b4 {[%clk 1:20:31]} 29... Bf8
{[%clk 0:18:59]} 30. Ba6 {[%clk 1:19:28]} 30... d3 {[%clk 0:18:38]} 31. cxd3
{[%clk 1:19:51]} 31... Nd6 {[%clk 0:18:24]} 32. dxe4 {[%clk 1:20:10]} 32... fxe4
{[%clk 0:18:47]} 33. b5 {[%clk 1:20:34]} 33... Kf7 {[%clk 0:18:42]} 34. b7
{[%clk 1:20:53]} 34... Nxb7 {[%clk 0:19:06]} 35. Bxb7 {[%clk 1:21:18]} 35... e3
{[%clk 0:19:00]} 36. Bd5+ {[%clk 1:21:24]} 36... Kf6 {[%clk 0:19:24]} 37. fxe3
{[%clk 1:21:46]} 37... Bc5 {[%clk 0:19:47]} 38. Kf2 {[%clk 1:22:11]} 1-0

[Variant "Standard"]
[Site "Europe Echecs"]

[Event "Championnat du monde jeunes U12"]
[Date "2024.11.18"]
[White "Xia, Jinnan"]
[Black "Nicot, Valentin"]
[WhiteElo "1850"]
[BlackElo "2078"]
[Round "4.38"]
[Result "1/2-1/2"]
[TimeControl "5400+30"]

1. d4 {[%clk 1:30:53]} 1... f5 {[%clk 1:30:29]} 2. Nf3 {[%clk 1:31:13]} 2... Nf6
{[%clk 1:30:29]} 3. g3 {[%clk 1:31:35]} 3... e6 {[%clk 1:30:32]} 4. Bg2 {[%clk
1:31:58]} 4... Be7 {[%clk 1:30:39]} 5. O-O {[%clk 1:32:20]} 5... O-O {[%clk
1:30:40]} 6. c4 {[%clk 1:32:43]} 6... d6 {[%clk 1:30:36]} 7. Nc3 {[%clk
1:32:12]} 7... Ne4 {[%clk 1:30:34]} 8. Qc2 {[%clk 1:26:55]} 8... Nxc3 {[%clk
1:30:00]} 9. Qxc3 {[%clk 1:26:47]} 9... a5 {[%clk 1:29:25]} 10. b3 {[%clk
1:25:27]} 10... Bf6 {[%clk 1:28:50]} 11. Bb2 {[%clk 1:24:13]} 11... Nc6 {[%clk
1:27:58]} 12. Rad1 {[%clk 1:19:26]} 12... Qe8 {[%clk 1:26:38]} 13. Qc1 {[%clk
1:16:23]} 13... e5 {[%clk 1:23:00]} 14. d5 {[%clk 1:13:05]} 14... Ne7 {[%clk
1:13:27]} 15. c5 {[%clk 1:12:43]} 15... a4 {[%clk 1:02:53]} 16. cxd6 {[%clk
0:59:53]} 16... cxd6 {[%clk 1:03:13]} 17. Ba3 {[%clk 1:00:19]} 17... Qd8 {[%clk
1:00:13]} 18. Nd2 {[%clk 0:59:53]} 18... Ng6 {[%clk 0:50:49]} 19. bxa4 {[%clk
0:56:11]} 19... Rxa4 {[%clk 0:48:32]} 20. Qb2 {[%clk 0:53:34]} 20... Be7 {[%clk
0:44:11]} 21. Bb4 {[%clk 0:45:25]} 21... Bd7 {[%clk 0:36:45]} 22. a3 {[%clk
0:42:49]} 22... Qb6 {[%clk 0:33:44]} 23. Nc4 {[%clk 0:41:36]} 23... Qa6 {[%clk
0:33:49]} 24. Qb3 {[%clk 0:40:32]} 24... Qb5 {[%clk 0:29:45]} 25. Rb1 {[%clk
0:35:30]} 25... Ra6 {[%clk 0:28:52]} 26. Rfc1 {[%clk 0:34:25]} 26... f4 {[%clk
0:19:47]} 27. e4 {[%clk 0:29:31]} 27... fxe3 {[%clk 0:18:29]} 28. Nxe3 {[%clk
0:28:57]} 28... Qb6 {[%clk 0:16:39]} 29. Qd3 {[%clk 0:24:27]} 29... Qd8 {[%clk
0:13:54]} 30. Be4 {[%clk 0:24:01]} 30... Bg5 {[%clk 0:13:11]} 31. Bd2 {[%clk
0:23:57]} 31... b5 {[%clk 0:10:02]} 32. h4 {[%clk 0:21:41]} 32... Bxh4 {[%clk
0:08:32]} 33. Bxg6 {[%clk 0:20:28]} 33... hxg6 {[%clk 0:08:44]} 34. gxh4 {[%clk
0:20:55]} 34... Qxh4 {[%clk 0:09:04]} 35. Be1 {[%clk 0:13:34]} 35... Qg5+ {[%clk
0:07:32]} 36. Ng2 {[%clk 0:06:46]} 36... Bf5 {[%clk 0:05:29]} 37. Qe3 {[%clk
0:07:06]} 37... Qxe3 {[%clk 0:04:58]} 38. Nxe3 {[%clk 0:07:31]} 38... Bxb1
{[%clk 0:05:25]} 39. Rxb1 {[%clk 0:07:56]} 39... Rxa3 {[%clk 0:04:22]} 40. Rxb5
{[%clk 0:08:21]} 40... Ra6 {[%clk 0:02:49]} 41. Rb7 {[%clk 0:07:58]} 41... Rc8
{[%clk 0:02:48]} 42. Kg2 {[%clk 0:06:41]} 42... Ra1 {[%clk 0:02:27]} 43. Bb4
{[%clk 0:05:22]} 43... Rb1 {[%clk 0:02:22]} 44. Nf1 {[%clk 0:04:10]} 44... Kh7
{[%clk 0:01:27]} 45. Nd2 {[%clk 0:03:48]} 45... Rb2 {[%clk 0:01:47]} 46. Kf3
{[%clk 0:03:28]} 46... Rcc2 {[%clk 0:01:13]} 47. Ne4 {[%clk 0:02:30]} 47... Rc4
{[%clk 0:01:09]} 48. Ng5+ {[%clk 0:00:38]} 48... Kh6 {[%clk 0:01:26]} 49. Nf7+
{[%clk 0:00:45]} 49... Kh5 {[%clk 0:01:32]} 50. Rb8 {[%clk 0:01:02]} 50... Rf4+
{[%clk 0:01:07]} 51. Kg3 {[%clk 0:01:25]} 51... Rxf7 {[%clk 0:01:32]} 52. Rh8+
{[%clk 0:01:13]} 52... Kg5 {[%clk 0:01:59]} 53. Bxd6 {[%clk 0:01:39]} 53... e4
{[%clk 0:00:56]} 54. Bc5 {[%clk 0:01:57]} 54... Rf3+ {[%clk 0:00:47]} 55. Kg2
{[%clk 0:02:22]} 55... Rd3 {[%clk 0:00:52]} 56. d6 {[%clk 0:02:25]} 56... e3
{[%clk 0:01:09]} 57. Bxe3+ {[%clk 0:02:48]} 57... Kf6 {[%clk 0:00:41]} 58. Bf4
{[%clk 0:02:57]} 1/2-1/2

[Variant "Standard"]
[Site "Europe Echecs"]